fUST/lending_fUST_20260413
["ID","MTS","AMOUNT","RATE_DAILY","PERIOD"]
[420359104,1776031848118,-500.0,0.00017534,2]
[420359105,1776031848129,-500.0,0.00017534,2]
[420359106,1776031848138,-500.0,0.00017534,2]
[420359107,1776031848155,-500.0,0.00017534,2]
[420359108,1776031848168,-2233.52,0.00017534,2]
[420359109,1776031848178,-500.0,0.00017534,2]
[420359110,1776031848193,-500.0,0.00017534,2]
[420359111,1776031848208,-3239.01,0.00017534,2]
[420359112,1776031848217,-500.0,0.00017534,2]
[420359113,1776031848230,-500.0,0.00017534,2]
[420359114,1776031848249,-836.42,0.00017534,2]
[420359115,1776031848263,-500.0,0.00017534,2]
[420359116,1776031848274,-1550.23,0.00017534,2]
[420359117,1776031848313,-2645.99,0.00017534,2]
[420359118,1776031848329,-5341.38,0.00017534,2]
[420359119,1776031848361,-500.0,0.00017534,2]
[420359120,1776031848375,-3466.04,0.00017534,2]
[420359121,1776031848435,-2547.79,0.00017534,2]
[420359122,1776031848594,-605.35,0.00017534,2]
[420359123,1776031848630,-517.07,0.00017534,2]
[420359124,1776031848640,-500.0,0.00017534,2]
[420359125,1776031848650,-500.0,0.00017534,2]
[420359126,1776031848666,-1850.1,0.00017534,2]
[420359127,1776031848677,-500.0,0.00017534,2]
[420359128,1776031848687,-598.43,0.00017534,2]
[420359129,1776031848697,-500.0,0.00017534,2]
[420359130,1776031848713,-500.0,0.00017534,2]
[420359132,1776031848722,-500.0,0.00017534,2]
[420359133,1776031848732,-500.0,0.00017534,2]
[420359134,1776031848741,-2309.04,0.00017534,2]
[420359135,1776031848758,-500.0,0.00017534,2]
[420359136,1776031848768,-500.0,0.00017534,2]
[420359137,1776031848777,-384.17501329,0.00017534,2]
[420359138,1776031848787,-1192.52,0.00017534,2]
[420359139,1776031848799,-2323.17,0.00017534,2]
[420359140,1776031848809,-674.47,0.00017534,2]
[420359141,1776031848823,-500.0,0.00017534,2]
[420359142,1776031848833,-1528.0,0.00017534,2]
[420359143,1776031848843,-285.0,0.00017604,2]
[420359144,1776031848854,-151.0,0.000178,2]
[420359146,1776031848866,-1674.1276,0.00017808,2]
[420359148,1776031848877,-582.08,0.00017808,2]
[420359150,1776031848886,-500.0,0.00017808,2]
[420359152,1776031848898,-2245.51,0.00017808,2]
[420359153,1776031848913,-500.0,0.00017808,2]
[420359154,1776031848923,-1898.13,0.00017808,2]
[420359155,1776031848934,-1424.05,0.00017808,2]
[420359156,1776031848947,-942.59,0.00017808,2]
[420359157,1776031848959,-500.0,0.00017808,2]
[420359158,1776031848970,-2805.1,0.00017808,2]
[420359159,1776031848979,-500.0,0.00017808,2]
[420359160,1776031848993,-626.72,0.00017808,2]
[420359161,1776031849018,-500.0,0.00017808,2]
[420359162,1776031849027,-500.0,0.00017808,2]
[420359163,1776031849041,-551.52,0.00017808,2]
[420359164,1776031849060,-500.0,0.00017808,2]
[420359165,1776031849069,-500.0,0.00017808,2]
[420359166,1776031849079,-500.0,0.00017808,2]
[420359167,1776031849110,-500.0,0.00017808,2]
[420359168,1776031849120,-2233.52,0.00017808,2]
[420359169,1776031849142,-500.0,0.00017808,2]
[420359170,1776031849155,-500.0,0.00017808,2]
[420359171,1776031849172,-3239.01,0.00017808,2]
[420359172,1776031849191,-500.0,0.00017808,2]
[420359173,1776031849202,-500.0,0.00017808,2]
[420359174,1776031849217,-836.42,0.00017808,2]
[420359175,1776031849243,-500.0,0.00017808,2]
[420359176,1776031849256,-1550.23,0.00017808,2]
[420359178,1776031849270,-2645.99,0.00017808,2]
[420359180,1776031849282,-5341.38,0.00017808,2]
[420359181,1776031849305,-3466.04,0.00017808,2]
[420359183,1776031849315,-2547.79,0.00017808,2]
[420359185,1776031849327,-500.0,0.00017808,2]
[420359187,1776031849347,-605.35,0.00017808,2]
[420359189,1776031849367,-517.07,0.00017808,2]
[420359191,1776031849376,-500.0,0.00017808,2]
[420359193,1776031849400,-500.0,0.00017808,2]
[420359195,1776031849420,-1850.1,0.00017808,2]
[420359197,1776031849433,-500.0,0.00017808,2]
[420359199,1776031849445,-598.43,0.00017808,2]
[420359201,1776031849464,-500.0,0.00017808,2]
[420359203,1776031849502,-500.0,0.00017808,2]
[420359205,1776031849511,-500.0,0.00017808,2]
[420359207,1776031849541,-500.0,0.00017808,2]
[420359209,1776031849551,-2309.04,0.00017808,2]
[420359211,1776031849564,-239.27178074,0.00017808,2]
[420359213,1776031849588,-500.0,0.00017808,2]
[420359216,1776031849597,-1192.52,0.00017808,2]
[420359218,1776031849616,-2323.17,0.00017808,2]
[420359220,1776031849651,-674.47,0.00017808,2]
[420359222,1776031849673,-500.0,0.00017808,2]
[420359223,1776031849683,-1528.0,0.00017808,2]
[420359226,1776031849692,-2001.52436062,0.00018,2]
[420359228,1776031849703,-500.0,0.00018,2]
[420359230,1776031849721,-155.0,0.00018081,2]
[420359232,1776031849731,-1674.1276,0.00018082,2]
[420359234,1776031849742,-582.08,0.00018082,2]
[420359236,1776031849760,-500.0,0.00018082,2]
[420359238,1776031849770,-2245.51,0.00018082,2]
[420359240,1776031849780,-500.0,0.00018082,2]
[420359242,1776031849797,-1898.13,0.00018082,2]
[420359244,1776031849812,-1424.05,0.00018082,2]
[420359246,1776031849821,-942.59,0.00018082,2]
[420359248,1776031849830,-500.0,0.00018082,2]
[420359250,1776031849843,-2805.1,0.00018082,2]
[420359252,1776031849857,-500.0,0.00018082,2]
[420359254,1776031849877,-626.72,0.00018082,2]
[420359256,1776031849890,-500.0,0.00018082,2]
[420359258,1776031849899,-500.0,0.00018082,2]
[420359259,1776031849918,-551.52,0.00018082,2]
[420359261,1776031849951,-500.0,0.00018082,2]
[420359264,1776031849975,-500.0,0.00018082,2]
[420359266,1776031849992,-500.0,0.00018082,2]
[420359268,1776031850015,-500.0,0.00018082,2]
[420359270,1776031850058,-2233.52,0.00018082,2]
[420359272,1776031850108,-500.0,0.00018082,2]
[420359273,1776031850181,-500.0,0.00018082,2]
[420359275,1776031850197,-3239.01,0.00018082,2]
[420359277,1776031850242,-500.0,0.00018082,2]
[420359280,1776031850256,-500.0,0.00018082,2]
[420359282,1776031850323,-836.42,0.00018082,2]
[420359284,1776031850333,-500.0,0.00018082,2]
[420359286,1776031850356,-1550.23,0.00018082,2]
[420359288,1776031850368,-2645.99,0.00018082,2]
[420359290,1776031850377,-5341.38,0.00018082,2]
[420359292,1776031850396,-3466.04,0.00018082,2]
[420359294,1776031850406,-2547.79,0.00018082,2]
[420359296,1776031850416,-494.57767458,0.00018082,2]
[420359298,1776031850426,-605.35,0.00018082,2]
[420359300,1776031850438,-517.07,0.00018082,2]
[420359301,1776031850454,-500.0,0.00018082,2]
[420359302,1776031850464,-500.0,0.00018082,2]
[420359303,1776031850475,-1850.1,0.00018082,2]
[420359304,1776031850487,-500.0,0.00018082,2]
[420359305,1776031850501,-598.43,0.00018082,2]
[420359306,1776031850510,-500.0,0.00018082,2]
[420359307,1776031850520,-500.0,0.00018082,2]
[420359308,1776031850532,-500.0,0.00018082,2]
[420359309,1776031850546,-500.0,0.00018082,2]
[420359310,1776031850556,-2309.04,0.00018082,2]
[420359311,1776031850570,-500.0,0.00018082,2]
[420359312,1776031850581,-1192.52,0.00018082,2]
[420359313,1776031850594,-2323.17,0.00018082,2]
[420359314,1776031850611,-674.47,0.00018082,2]
[420359315,1776031850622,-500.0,0.00018082,2]
[420359316,1776031850635,-1528.0,0.00018082,2]
[420359317,1776031850645,-168.0,0.00018094,2]
[420359318,1776031850658,-168.0,0.00018121,2]
[420359319,1776031850668,-151.0,0.000182,2]
[420359320,1776031850681,-168.0,0.00018286,2]
[420359321,1776031850693,-1674.1276,0.00018356,2]
[420359322,1776031850706,-582.08,0.00018356,2]
[420359323,1776031850718,-500.0,0.00018356,2]
[420359324,1776031850729,-2245.51,0.00018356,2]
[420359325,1776031850740,-414.47121869,0.00018356,2]
[420359326,1776031850756,-1898.13,0.00018356,2]
[420359327,1776031850769,-1424.05,0.00018356,2]
[420359328,1776031850782,-942.59,0.00018356,2]
[420359330,1776031850797,-500.0,0.00018356,2]
[420359332,1776031850809,-2805.1,0.00018356,2]
[420359334,1776031850823,-500.0,0.00018356,2]
[420359336,1776031850832,-626.72,0.00018356,2]
[420359338,1776031850842,-500.0,0.00018356,2]
[420359340,1776031850860,-500.0,0.00018356,2]
[420359342,1776031850872,-551.52,0.00018356,2]
[420359345,1776031850890,-500.0,0.00018356,2]
[420359347,1776031850900,-500.0,0.00018356,2]
[420359349,1776031850920,-500.0,0.00018356,2]
[420359351,1776031850929,-500.0,0.00018356,2]
[420359353,1776031850951,-2233.52,0.00018356,2]
[420359355,1776031850962,-500.0,0.00018356,2]
[420359357,1776031850981,-500.0,0.00018356,2]
[420359359,1776031850990,-3239.01,0.00018356,2]
[420359361,1776031851000,-500.0,0.00018356,2]
[420359363,1776031851023,-500.0,0.00018356,2]
[420359365,1776031851033,-836.42,0.00018356,2]
[420359367,1776031851042,-552.92087304,0.00018356,2]
[420359369,1776031851066,-1550.23,0.00018356,2]
[420359371,1776031851076,-2645.99,0.00018356,2]
[420359373,1776031851085,-5341.38,0.00018356,2]
[420359375,1776031851117,-3466.04,0.00018356,2]
[420359377,1776031851127,-2547.79,0.00018356,2]
[420359379,1776031851143,-605.35,0.00018356,2]
[420359381,1776031851156,-517.07,0.00018356,2]
[420359383,1776031851166,-500.0,0.00018356,2]
[420359385,1776031851175,-500.0,0.00018356,2]
[420359387,1776031851202,-1850.1,0.00018356,2]
[420359389,1776031851212,-500.0,0.00018356,2]
[420359391,1776031851221,-598.43,0.00018356,2]
[420359393,1776031851250,-500.0,0.00018356,2]
[420359395,1776031851260,-500.0,0.00018356,2]
[420359397,1776031851283,-614.79959588,0.00018356,2]
[420359399,1776031851294,-500.0,0.00018356,2]
[420359401,1776031851315,-2309.04,0.00018356,2]
[420359403,1776031851327,-500.0,0.00018356,2]
[420359405,1776031851338,-1192.52,0.00018356,2]
[420359406,1776031851352,-2323.17,0.00018356,2]
[420359408,1776031851381,-674.47,0.00018356,2]
[420359410,1776031851392,-500.0,0.00018356,2]
[420359413,1776031851411,-1528.0,0.00018356,2]
[420359415,1776031851421,-1674.1276,0.0001863,2]
[420359416,1776031851434,-582.08,0.0001863,2]
[420359418,1776031851452,-500.0,0.0001863,2]
[420359420,1776031851473,-2245.51,0.0001863,2]
[420359422,1776031851485,-1898.13,0.0001863,2]
[420359424,1776031851502,-1424.05,0.0001863,2]
[420359427,1776031851517,-942.59,0.0001863,2]
[420359429,1776031851529,-500.0,0.0001863,2]
[420359431,1776031851544,-2805.1,0.0001863,2]
[420359433,1776031851555,-500.0,0.0001863,2]
[420359435,1776031851571,-626.72,0.0001863,2]
[420359437,1776031851595,-500.0,0.0001863,2]
[420359438,1776031851604,-500.0,0.0001863,2]
[420359441,1776031851614,-551.52,0.0001863,2]
[420359443,1776031851631,-500.0,0.0001863,2]
[420359445,1776031851644,-500.0,0.0001863,2]
[420359447,1776031851654,-500.0,0.0001863,2]
[420359449,1776031851664,-2233.52,0.0001863,2]
[420359451,1776031851690,-500.0,0.0001863,2]
[420359453,1776031851700,-500.0,0.0001863,2]
[420359455,1776031851709,-500.0,0.0001863,2]
[420359457,1776031851730,-3239.01,0.0001863,2]
[420359459,1776031851755,-500.0,0.0001863,2]
[420359461,1776031851776,-500.0,0.0001863,2]
[420359463,1776031851791,-836.42,0.0001863,2]
[420359465,1776031851818,-1550.23,0.0001863,2]
[420359467,1776031851828,-2645.99,0.0001863,2]
[420359469,1776031851839,-5341.38,0.0001863,2]
[420359471,1776031851850,-3466.04,0.0001863,2]
[420359473,1776031851863,-2547.79,0.0001863,2]
[420359475,1776031851872,-605.35,0.0001863,2]
[420359477,1776031851882,-517.07,0.0001863,2]
[420359479,1776031851894,-500.0,0.0001863,2]
[420359481,1776031851907,-500.0,0.0001863,2]
[420359483,1776031851917,-1850.1,0.0001863,2]
[420359485,1776031851931,-500.0,0.0001863,2]
[420359487,1776031851950,-598.43,0.0001863,2]
[420359489,1776031851973,-500.0,0.0001863,2]
[420359491,1776031851983,-500.0,0.0001863,2]
[420359493,1776031851997,-500.0,0.0001863,2]
[420359495,1776031852015,-2309.04,0.0001863,2]
[420359497,1776031852030,-500.0,0.0001863,2]
[420359499,1776031852040,-1192.52,0.0001863,2]
[420359501,1776031852056,-2323.17,0.0001863,2]
[420359503,1776031852071,-674.47,0.0001863,2]
[420359505,1776031852111,-500.0,0.0001863,2]
[420359508,1776031852130,-1528.0,0.0001863,2]
[420359510,1776031852152,-151.0,0.000187,2]
[420359512,1776031852165,-500.0,0.00018759,2]
[420359514,1776031852198,-160.0,0.0001877,7]
[420359515,1776031852239,-500.0,0.00018776,2]
[420359517,1776031852258,-351.77613313,0.00018794,2]
[420359520,1776031852302,-37081.99490758,0.000188,2]
[420359521,1776031852317,-1674.1276,0.00018904,2]
[420359523,1776031852343,-582.08,0.00018904,2]
[420359525,1776031852353,-500.0,0.00018904,2]
[420359527,1776031852393,-2245.51,0.00018904,2]
[420359530,1776031852405,-1898.13,0.00018904,2]
[420359532,1776031852446,-1424.05,0.00018904,2]
[420359534,1776031852458,-942.59,0.00018904,2]
[420359536,1776031852468,-500.0,0.00018904,2]
[420359537,1776031852501,-2805.1,0.00018904,2]
[420359539,1776031852511,-500.0,0.00018904,2]
[420359541,1776031852521,-626.72,0.00018904,2]
[420359543,1776031852537,-500.0,0.00018904,2]
[420359545,1776031852561,-500.0,0.00018904,2]
[420359547,1776031852570,-551.52,0.00018904,2]
[420359550,1776031852581,-500.0,0.00018904,2]
[420359551,1776031852611,-500.0,0.00018904,2]
[420359554,1776031852621,-500.0,0.00018904,2]
[420359556,1776031852631,-500.0,0.00018904,2]
[420359558,1776031852642,-2233.52,0.00018904,2]
[420359559,1776031852659,-500.0,0.00018904,2]
[420359562,1776031852678,-500.0,0.00018904,2]
[420359563,1776031852689,-3239.01,0.00018904,2]
[420359565,1776031852710,-500.0,0.00018904,2]
[420359567,1776031852720,-583.21026642,0.00018904,2]
[420359570,1776031852738,-836.42,0.00018904,2]
[420359572,1776031852749,-1550.23,0.00018904,2]
[420359574,1776031852772,-2645.99,0.00018904,2]
[420359576,1776031852784,-5341.38,0.00018904,2]
[420359578,1776031852810,-3466.04,0.00018904,2]
[420359580,1776031852819,-2547.79,0.00018904,2]
[420359581,1776031852840,-605.35,0.00018904,2]
[420359583,1776031852865,-517.07,0.00018904,2]
[420359585,1776031852875,-500.0,0.00018904,2]
[420359587,1776031852886,-500.0,0.00018904,2]
[420359589,1776031852906,-1850.1,0.00018904,2]
[420359591,1776031852930,-500.0,0.00018904,2]
[420359594,1776031852941,-598.43,0.00018904,2]
[420359596,1776031852962,-500.0,0.00018904,2]
[420359598,1776031852972,-500.0,0.00018904,2]
[420359600,1776031852982,-2309.04,0.00018904,2]
[420359602,1776031852999,-160.53449571,0.00018904,2]
[420359604,1776031853024,-1192.52,0.00018904,2]
[420359606,1776031853034,-2323.17,0.00018904,2]
[420359608,1776031853054,-674.47,0.00018904,2]
[420359610,1776031853064,-500.0,0.00018904,2]
[420359612,1776031853073,-933.16,0.00018904,2]
[420359614,1776031853083,-500.0,0.00018904,2]
[420359616,1776031853102,-168.0,0.00018918,2]
[420359618,1776031853112,-168.0,0.00019062,2]
[420359620,1776031853125,-400.0,0.000191,4]
[420359622,1776031853143,-800.0,0.000191,3]
[420359633,1776031853281,-300.0,0.000191,2]
[420359635,1776031853315,-1674.1276,0.00019178,2]
[420359637,1776031853338,-582.08,0.00019178,2]
[420359639,1776031853361,-500.0,0.00019178,2]
[420359641,1776031853374,-2245.51,0.00019178,2]
[420359643,1776031853409,-163.97,0.00019178,2]
[420359645,1776031853421,-207.094,0.00019178,2]
[420359647,1776031853440,-257.0017,0.00019178,2]
[420359649,1776031853466,-185.638,0.00019178,2]
[420359651,1776031853491,-1898.13,0.00019178,2]
[420359653,1776031853513,-1424.05,0.00019178,2]
[420359655,1776031853541,-942.59,0.00019178,2]
[420359657,1776031853558,-500.0,0.00019178,2]
[420359658,1776031853574,-2805.1,0.00019178,2]
[420359660,1776031853613,-200.0,0.00019178,2]
[420359662,1776031853623,-626.06517261,0.00019178,2]
[420359664,1776031853652,-626.72,0.00019178,2]
[420359667,1776031853665,-500.0,0.00019178,2]
[420359668,1776031853699,-433.90557946,0.00019178,2]
[420359671,1776031853712,-551.52,0.00019178,2]
[420359672,1776031853729,-500.0,0.00019178,2]
[420359674,1776031853748,-500.0,0.00019178,2]
[420359676,1776031853758,-425.27045172,0.00019178,2]
[420359679,1776031853771,-500.0,0.00019178,2]
[420359681,1776031853802,-2233.52,0.00019178,2]
[420359683,1776031853812,-500.0,0.00019178,2]
[420359685,1776031853822,-500.0,0.00019178,2]
[420359686,1776031853836,-3239.01,0.00019178,2]
[420359689,1776031853851,-500.0,0.00019178,2]
[420359691,1776031853861,-836.42,0.00019178,2]
[420359693,1776031853880,-1550.23,0.00019178,2]
[420359695,1776031853905,-2645.99,0.00019178,2]
[420359697,1776031853917,-5341.38,0.00019178,2]
[420359699,1776031853944,-3466.04,0.00019178,2]
[420359701,1776031853964,-2547.79,0.00019178,2]
[420359702,1776031853977,-605.35,0.00019178,2]
[420359704,1776031853987,-517.07,0.00019178,2]
[420359707,1776031854001,-500.0,0.00019178,2]
[420359708,1776031854038,-500.0,0.00019178,2]
[420359711,1776031854049,-1850.1,0.00019178,2]
[420359713,1776031854077,-500.0,0.00019178,2]
[420359714,1776031854088,-598.43,0.00019178,2]
[420359717,1776031854107,-500.0,0.00019178,2]
[420359719,1776031854137,-500.0,0.00019178,2]
[420359720,1776031854153,-2309.04,0.00019178,2]
[420359723,1776031854189,-1192.52,0.00019178,2]
[420359725,1776031854213,-2323.17,0.00019178,2]
[420359727,1776031854227,-674.47,0.00019178,2]
[420359729,1776031854238,-500.0,0.00019178,2]
[420359731,1776031854273,-1071.912574,0.00019178,2]
[420359732,1776031854284,-1071.912574,0.00019178,2]
[420359735,1776031854294,-1071.912574,0.00019178,2]
[420359736,1776031854312,-1071.912574,0.00019178,2]
[420359739,1776031854323,-1071.912574,0.00019178,2]
[420359741,1776031854333,-1071.912574,0.00019178,2]
[420359743,1776031854346,-1071.912574,0.00019178,2]
[420359745,1776031854370,-1071.912574,0.00019178,2]
[420359747,1776031854380,-1071.912574,0.00019178,2]
[420359749,1776031854390,-1071.912574,0.00019178,2]
[420359751,1776031854410,-1071.912574,0.00019178,2]
[420359753,1776031854425,-1071.912574,0.00019178,2]
[420359754,1776031854435,-1071.912574,0.00019178,2]
[420359757,1776031854445,-1071.912574,0.00019178,2]
[420359758,1776031854461,-1071.912574,0.00019178,2]
[420359760,1776031854480,-1071.912574,0.00019178,2]
[420359763,1776031854490,-1071.912574,0.00019178,2]
[420359765,1776031854503,-1071.912574,0.00019178,2]
[420359767,1776031854520,-1071.912574,0.00019178,2]
[420359769,1776031854531,-1071.912578,0.00019178,2]
[420359771,1776031854554,-168.0,0.00019286,2]
[420359772,1776031854567,-1000.0,0.00019307,2]
[420359774,1776031854590,-1000.0,0.00019324,2]
[420359776,1776031854604,-168.0,0.00019353,2]
[420359778,1776031854614,-1611.91298641,0.00019389,2]
[420359780,1776031854646,-650.98550877,0.00019451,18]
[420359783,1776031854657,-151.0,0.00019452,2]
[420359785,1776031854691,-1143.5653,0.00019452,2]
[420359787,1776031854702,-884.6594,0.00019452,2]
[420359789,1776031854736,-582.08,0.00019452,2]
[420359791,1776031854748,-431.74362334,0.00019452,2]
[420359792,1776031854772,-2245.51,0.00019452,2]
[420359794,1776031854784,-1898.13,0.00019452,2]
[420359796,1776031854796,-1424.05,0.00019452,2]
[420359798,1776031854807,-942.59,0.00019452,2]
[420359800,1776031854833,-500.0,0.00019452,2]
[420359802,1776031854843,-2805.1,0.00019452,2]
[420359804,1776031854854,-626.72,0.00019452,2]
[420359806,1776031854881,-500.0,0.00019452,2]
[420359808,1776031854893,-551.52,0.00019452,2]
[420359811,1776031854907,-500.0,0.00019452,2]
[420359813,1776031854923,-300.93,0.00019452,2]
[420359814,1776031854934,-2233.52,0.00019452,2]
[420359817,1776031854951,-500.0,0.00019452,2]
[420359818,1776031854966,-500.0,0.00019452,2]
[420359821,1776031855018,-500.0,0.00019452,2]
[420359823,1776031855034,-3239.01,0.00019452,2]
[420359825,1776031855050,-500.0,0.00019452,2]
[420359826,1776031855099,-836.42,0.00019452,2]
[420359828,1776031855132,-1550.23,0.00019452,2]
[420359830,1776031855144,-2645.99,0.00019452,2]
[420359833,1776031855189,-5341.38,0.00019452,2]
[420359835,1776031855201,-3466.04,0.00019452,2]
[420359837,1776031855223,-2547.79,0.00019452,2]
[420359839,1776031855233,-605.35,0.00019452,2]
[420359841,1776031855246,-517.07,0.00019452,2]
[420359843,1776031855272,-500.0,0.00019452,2]
[420359846,1776031855284,-500.0,0.00019452,2]
[420359848,1776031855294,-1850.1,0.00019452,2]
[420359850,1776031855312,-500.0,0.00019452,2]
[420359852,1776031855322,-598.43,0.00019452,2]
[420359854,1776031855331,-500.0,0.00019452,2]
[420359855,1776031855346,-500.0,0.00019452,2]
[420359857,1776031855363,-2309.04,0.00019452,2]
[420359859,1776031855373,-1192.52,0.00019452,2]
[420359861,1776031855383,-2323.17,0.00019452,2]
[420359864,1776031855395,-674.47,0.00019452,2]
[420359865,1776031855407,-500.0,0.00019452,2]
[420359867,1776031855417,-1000.0,0.00019452,2]
[420359869,1776031855427,-168.0,0.00019456,2]
[420359871,1776031855438,-168.0,0.00019465,2]
[420359874,1776031855451,-184.0,0.00019482,2]
[420359875,1776031855462,-168.0,0.00019487,2]
[420359878,1776031855480,-295.09344592,0.00019521,2]
[420359880,1776031855490,-168.0,0.00019546,2]
[420359881,1776031855499,-155.0,0.00019724,2]
[420359883,1776031855512,-650.98550876,0.00019725,18]
[420359886,1776031855522,-1143.5653,0.00019726,2]
[420359888,1776031855532,-884.6594,0.00019726,2]
[420359889,1776031855543,-582.08,0.00019726,2]
[420359891,1776031855556,-2245.51,0.00019726,2]
[420359894,1776031855567,-1898.13,0.00019726,2]
[420359896,1776031855577,-1424.05,0.00019726,2]
[420359897,1776031855586,-942.59,0.00019726,2]
[420359898,1776031855601,-500.0,0.00019726,2]
[420359899,1776031855610,-2805.1,0.00019726,2]
[420359900,1776031855620,-626.72,0.00019726,2]
[420359901,1776031855629,-500.0,0.00019726,2]
[420359902,1776031855643,-551.52,0.00019726,2]
[420359903,1776031855659,-500.0,0.00019726,2]
[420359904,1776031855669,-500.0,0.00019726,2]
[420359905,1776031855679,-2233.52,0.00019726,2]
[420359906,1776031855688,-357.60392426,0.00019726,2]
[420359907,1776031855703,-500.0,0.00019726,2]
[420359908,1776031855715,-3239.01,0.00019726,2]
[420359909,1776031855725,-500.0,0.00019726,2]
[420359910,1776031855735,-836.42,0.00019726,2]
[420359911,1776031855751,-1550.23,0.00019726,2]
[420359912,1776031855763,-2645.99,0.00019726,2]
[420359913,1776031855772,-5341.38,0.00019726,2]
[420359914,1776031855782,-3466.04,0.00019726,2]
[420359915,1776031855794,-2547.79,0.00019726,2]
[420359916,1776031855805,-605.35,0.00019726,2]
[420359917,1776031855816,-517.07,0.00019726,2]
[420359918,1776031855826,-500.0,0.00019726,2]
[420359919,1776031855845,-500.0,0.00019726,2]
[420359920,1776031855860,-1850.1,0.00019726,2]
[420359921,1776031855869,-500.0,0.00019726,2]
[420359922,1776031855885,-598.43,0.00019726,2]
[420359923,1776031855903,-500.0,0.00019726,2]
[420359924,1776031855912,-500.0,0.00019726,2]
[420359925,1776031855929,-2309.04,0.00019726,2]
[420359926,1776031855946,-1192.52,0.00019726,2]
[420359927,1776031855955,-2323.17,0.00019726,2]
[420359928,1776031855987,-674.47,0.00019726,2]
[420359929,1776031856013,-500.0,0.00019726,2]
[420359930,1776031856029,-168.0,0.00019784,2]
[420359931,1776031856083,-1461.78,0.000198,30]
[420359932,1776031856096,-72305.20232603,0.000198,2]
[420359933,1776031856117,-1500.0,0.00019855,2]
[420359934,1776031856133,-1500.0,0.00019872,2]
[420359935,1776031856148,-3935.44351967,0.000199,7]
[420359936,1776031856160,-1957.721026,0.000199,5]
[420359937,1776031856187,-10855.55947932,0.000199,2]
[420359938,1776031856197,-1000.0,0.0001992,5]
[420359939,1776031856209,-1000.0,0.0001994,5]
[420359940,1776031856224,-1000.0,0.0001996,5]
[420359941,1776031856239,-1516.14437521,0.00019979,4]
[420359942,1776031856251,-136035.96408136,0.0001998,2]
[420359943,1776031857384,-200.0,0.00019178,2]
[420359944,1776031857407,-6760.02111348,0.0001998,2]
[420359945,1776031857831,-1000.0,0.000195,2]
[420359946,1776031857850,-407.01445481,0.0001998,2]
[420359947,1776031857865,-381.96055923,0.0001998,2]
[420359948,1776031857877,-50150.0326968,0.0001998,2]
[420359949,1776031857898,-4251.07197513,0.0001998,2]
[420359950,1776031857916,-1661.52715135,0.0001998,2]
[420359951,1776031858348,-762.0,0.00017534,2]
[420359952,1776031858370,-30831.23514826,0.0001998,2]
[420359953,1776031858381,-1000.0,0.0001998,5]
[420359954,1776031858390,-1796.61015751,0.0002,2]
[420359955,1776031858404,-2329.18508868,0.0002,2]
[420359956,1776031858422,-23301.99999999,0.0002,2]
[420359957,1776031858448,-6331.359475,0.0002,2]
[420359958,1776031858470,-2058.57938517,0.0002,2]
[420359962,1776032108957,158.0,0.0001938,120]
[420359963,1776032110254,158.0,0.00020349,120]